bitfinex/quotes_SOLUSD_20240821
["timestamp","ask_amount","ask_price","bid_price","bid_amount"]
[1724250195880,7.0939,140.97,140.88,7.0981]
[1724250196053,387.8,140.98,140.89,1.41914678]
[1724250196054,65.0,140.96,140.89,1.41914678]
[1724250196257,65.0,140.96,140.88,24.843]
[1724250196552,65.0,140.96,140.89,1.41918409]
[1724250196553,50.84,140.94,140.89,1.41918409]
[1724250196770,50.84,140.94,140.88,24.843]
[1724250197272,65.0,140.96,140.89,8.51501621]
[1724250197483,20.0,140.96,140.9,1.41820096]
[1724250197659,20.0,140.97,140.92,7.0959]
[1724250197858,17.7205,141.08,140.92,7.0959]
[1724250197859,7.0917,141.01,140.92,7.0959]
[1724250198054,1.41860792,141.0,140.88,17.745]
[1724250198255,7.0934,140.98,140.89,7.0976]
[1724250198478,1.41860792,140.97,140.89,7.0976]
[1724250199177,1.41860792,141.02,140.88,17.745]
[1724250199385,20.0,141.03,140.89,1.41737971]
[1724250199551,7.0923,141.0,140.91,7.0966]
[1724250199756,28.51130792,140.99,140.89,7.0973]
[1724250200055,8.51200792,140.98,140.89,7.0973]
[1724250200250,8.51200792,140.98,140.86,7.0992]
[1724250200251,7.0946,140.96,140.86,7.0992]
[1724250200457,20.0,140.95,140.85,0.8299531]
[1724250200680,20.0,140.95,140.88,7.0981]
[1724250201076,20.0,141.0,140.88,7.0981]
[1724250201378,45.0,140.99,140.88,7.0981]
[1724250201549,20.0,140.98,140.92,7.0961]
[1724250201749,20.0,141.0,140.91,7.0967]
[1724250202152,7.0932,140.98,140.9,24.8397]
[1724250202352,28.51250792,140.97,140.88,7.0979]
[1724250202570,7.0939,140.97,140.89,7.0976]
[1724250202773,20.0,140.96,140.89,7.0976]
[1724250202984,20.0,140.96,140.89,17.7441]
[1724250203151,20.0,140.98,140.93,7.0956]
[1724250203355,387.8,141.04,140.94,1.41873471]
[1724250203663,387.8,141.06,140.94,1.41873471]
[1724250204460,387.8,141.06,140.95,19.2800386]
[1724250204660,50.84,141.05,140.98,7.0929]
[1724250204859,50.84,141.05,140.99,1.41823354]
[1724250205061,57.9296,141.05,140.99,1.41823354]
[1724250205692,20.0,141.04,140.99,1.41823354]
[1724250205852,57.9296,141.05,140.98,7.0929]
[1724250205853,50.84,141.05,140.98,7.0929]
[1724250206052,50.84,141.05,140.99,8.51072855]
[1724250206277,1.41860792,141.04,140.97,17.733]
[1724250206476,50.84,141.05,140.98,7.093]
[1724250207287,50.84,141.05,140.99,8.51044977]
[1724250207575,50.84,141.05,140.99,1.41784977]
[1724250207771,50.84,141.05,140.97,24.8262]
[1724250207976,50.84,141.05,141.02,7.091]
[1724250208294,50.84,141.08,141.03,1.41791895]
[1724250208673,8.50750792,141.07,141.0,17.7304]
[1724250209276,57.9297,141.05,140.97,17.7338]
[1724250209597,21.41860792,141.04,140.97,17.7338]
[1724250210196,20.0,141.04,140.99,7.0926]
[1724250210377,20.0,141.04,141.0,7.0921]
[1724250210882,50.84,141.08,141.02,7.0908]
[1724250211190,50.84,141.08,141.03,7.0905]
[1724250211370,50.84,141.08,141.03,17.7257]
[1724250212982,1.41860792,141.07,140.99,16.3403]
[1724250213184,50.84,141.04,140.99,23.4326]
[1724250213482,50.84,141.04,140.98,6.4922]
[1724250213666,50.84,141.04,140.94,15.0954]
[1724250213667,7.0912,141.02,140.94,39.9278]
[1724250213875,8.50980792,141.02,140.94,39.9278]
[1724250214178,50.84,141.04,140.97,7.0936]
[1724250214382,8.50940792,141.03,140.96,24.8288]
[1724250214566,1.41860792,141.03,140.94,22.1906]
[1724250214768,45.0,141.03,140.96,7.094]
[1724250215097,50.84,141.04,140.98,7.093]
[1724250215278,50.84,141.04,140.98,7.0931]
[1724250215683,50.84,141.04,140.99,7.0926]
[1724250216305,50.84,141.04,140.98,7.0931]
[1724250217094,387.8,141.06,141.01,7.0912]
[1724250217293,50.84,141.12,141.02,17.727]
[1724250218195,50.84,141.12,141.05,17.7238]
[1724250218579,50.84,141.12,141.05,24.8133]
[1724250218785,57.9262,141.12,141.05,24.8133]
[1724250219374,7.0872,141.1,141.03,7.0901]
[1724250219575,8.50580792,141.1,141.03,7.0901]
[1724250220299,1.41860792,141.1,141.01,17.7284]
[1724250220501,45.0,141.09,141.01,17.7284]
[1724250220705,7.0867,141.11,141.03,7.0902]
[1724250221001,52.0871,141.1,141.03,7.0902]
[1724250221699,271.7137,141.14,141.04,46.66845735]
[1724250221700,254.0,141.14,141.04,46.66845735]
[1724250222020,254.0,141.14,141.05,1.41717139]
[1724250222172,254.0,141.14,141.06,0.25098]
[1724250222378,254.0,141.14,141.11,7.0865]
[1724250222577,7.0832,141.18,141.12,1.41698686]
[1724250222795,387.8,141.22,141.12,1.41698686]
[1724250223017,271.7019,141.23,141.12,1.41698686]
[1724250223018,405.5019,141.23,141.12,1.41698686]
[1724250223388,7.083,141.19,141.11,7.0865]
[1724250223817,7.0821,141.21,141.13,7.0854]
[1724250224015,7.0821,141.21,141.12,19.13133707]
[1724250224016,7.0812,141.22,141.15,7.0845]
[1724250224187,7.0812,141.22,141.16,1.41654125]
[1724250224526,1.41860792,141.21,141.14,7.085]
[1724250224695,7.0812,141.22,141.14,7.085]
[1724250225010,7.0812,141.22,141.15,8.50096416]
[1724250225320,7.0812,141.22,141.15,7.0844]
[1724250225506,7.0812,141.22,141.16,1.41647528]
[1724250226110,50.84,141.26,141.17,17.7087]
[1724250226310,7.08,141.25,141.17,17.7087]
[1724250226507,7.0801,141.24,141.17,24.7922]
[1724250226686,8.49940792,141.23,141.16,7.084]
[1724250226893,7.0801,141.24,141.17,8.37837922]
[1724250227115,7.0801,141.24,141.18,1.41627289]
[1724250227306,7.0801,141.24,141.14,33.2889]
[1724250227512,8.49940792,141.23,141.15,0.12549]
[1724250227816,50.84,141.23,141.16,7.0836]
[1724250228196,20.0,141.22,141.16,7.0836]
[1724250228527,20.0,141.22,141.17,8.49971085]
[1724250228701,20.0,141.22,141.18,1.41620625]
[1724250229293,50.84,141.26,141.18,19.12320625]
[1724250229511,50.84,141.26,141.19,7.0821]
[1724250230021,57.9191,141.26,141.19,7.0821]
[1724250230331,50.84,141.23,141.14,15.5764]
[1724250230696,20.0,141.22,141.15,19.12699902]
[1724250230903,20.0,141.22,141.17,7.0836]
[1724250231099,20.0,141.22,141.15,17.7108]
[1724250231100,7.0815,141.22,141.15,24.795]
[1724250231304,20.0,141.21,141.15,24.795]
[1724250231825,20.0,141.21,141.15,17.7108]
[1724250231826,27.0817,141.21,141.15,17.7108]
[1724250232004,20.0,141.21,141.15,24.7953]
[1724250232198,20.0,141.21,141.14,15.5764]
[1724250232421,50.84,141.2,141.14,15.5764]
[1724250232729,20.0,141.19,141.14,15.5764]
[1724250233825,20.0,141.19,141.15,7.0846]
[1724250234010,20.0,141.22,141.14,33.2886]
[1724250234203,7.0822,141.2,141.14,33.2886]
[1724250234430,28.50120792,141.19,141.14,15.5764]
[1724250234598,20.0,141.19,141.14,15.5764]
[1724250235305,20.0,141.19,141.15,1.41659353]
[1724250235600,20.0,141.19,141.15,17.711]
[1724250235913,20.0,141.22,141.17,7.0835]
[1724250236114,20.0,141.23,141.17,7.0835]
[1724250236504,27.0807,141.23,141.17,7.0835]
[1724250236703,27.0807,141.23,141.16,7.084]
[1724250237016,50.84,141.24,141.17,19.12492426]
[1724250237321,7.0791,141.26,141.19,7.0825]
[1724250238338,35.379,141.33,141.17,17.7086]
[1724250238535,50.84,141.23,141.14,33.2886]
[1724250238847,7.0811,141.22,141.15,7.20969]
[1724250239138,50.84,141.23,141.16,17.7099]
[1724250239330,1.41860792,141.26,141.14,15.5764]
[1724250239539,7.0812,141.22,141.15,24.795]
[1724250239733,20.0,141.21,141.16,7.0839]
[1724250240331,1.41860792,141.2,141.14,15.5764]
[1724250240538,42.23,141.2,141.15,7.0846]
[1724250240755,21.41860792,141.25,141.15,7.0846]
[1724250240912,387.8,141.27,141.2,17.7048]
[1724250241117,1.41860792,141.26,141.17,7.0834]
[1724250241347,7.0797,141.25,141.18,7.083]
[1724250241635,49.3097,141.25,141.19,1.41620428]
[1724250241843,49.3097,141.25,141.18,7.083]
[1724250242008,49.3097,141.25,141.19,1.41620003]
[1724250242429,20.0,141.24,141.19,7.0825]
[1724250242647,405.89009314,141.32,141.2,1.41612071]
[1724250242933,387.8,141.32,141.19,0.12549]
[1724250243151,7.0766,141.31,141.24,7.0801]
[1724250243448,387.8,141.32,141.25,1.41566203]
[1724250243652,387.8,141.32,141.24,6.4326]
[1724250243825,394.8761,141.32,141.25,8.49509094]
[1724250244143,1.41860792,141.31,141.24,6.4326]
[1724250244740,1.41860792,141.31,141.2,24.7871]
[1724250245041,21.41860792,141.31,141.2,24.7871]
[1724250245548,7.0792,141.26,141.2,17.7051]
[1724250245754,66.41860792,141.25,141.17,17.7088]
[1724250245923,8.49870792,141.24,141.17,24.7923]
[1724250246135,73.49920792,141.23,141.17,17.7088]
[1724250246334,27.0806,141.23,141.17,24.7924]
[1724250246529,27.0806,141.23,141.16,7.0841]
[1724250246734,27.0806,141.23,141.14,21.7157]
[1724250246735,7.0828,141.19,141.14,21.7157]
[1724250246941,7.0828,141.19,141.06,97.6747]
[1724250246942,42.23,141.17,141.09,22.7963]
[1724250247145,42.23,141.15,141.09,22.7963]
[1724250247328,20.0,141.14,141.09,22.7963]
[1724250247931,20.0,141.14,141.11,7.0863]
[1724250248143,7.0826,141.2,141.12,7.0861]
[1724250248338,52.0827,141.19,141.12,7.0861]
[1724250248530,27.0832,141.18,141.1,24.8036]
[1724250248739,46.41860792,141.17,141.1,24.8036]
[1724250249041,46.41860792,141.17,141.11,7.0865]
[1724250249243,20.0,141.16,141.09,6.4234]
[1724250249582,46.41860792,141.15,141.07,17.7214]
[1724250249853,21.41860792,141.14,141.07,17.7214]
[1724250250031,21.41860792,141.14,141.09,7.0876]
[1724250250552,20.0,141.14,141.1,8.50411401]
[1724250250729,20.0,141.16,141.11,1.4170933]
[1724250250930,387.8,141.2,141.11,1.4170933]
[1724250251136,430.03,141.2,141.13,7.0851]
[1724250251431,42.23,141.2,141.13,7.0851]
[1724250252147,42.23,141.2,141.15,7.0842]
[1724250252354,42.23,141.2,141.14,24.7971]
[1724250252951,254.0,141.27,141.16,17.7095]
[1724250253153,7.0808,141.23,141.16,24.7932]
[1724250253355,1.41860792,141.22,141.17,7.0836]
[1724250253936,7.0796,141.25,141.19,7.0822]
[1724250254137,7.0796,141.25,141.18,17.7072]
[1724250254138,1.41860792,141.24,141.18,17.7072]
[1724250254561,1.41860792,141.24,141.1,55.4333]
[1724250254562,7.0832,141.18,141.11,7.0862]
[1724250254764,21.41860792,141.17,141.08,17.7198]
[1724250255460,7.0847,141.15,141.08,17.7198]
[1724250255671,66.41860792,141.14,141.08,17.7198]
[1724250255864,73.50370792,141.14,141.08,17.7198]
[1724250256165,8.50420792,141.13,141.06,7.089]
[1724250256355,8.50420792,141.13,141.05,23.7489]
[1724250256356,27.0862,141.12,141.05,30.8381]
[1724250256541,1.41860792,141.11,141.05,30.8381]
[1724250256731,20.0,141.12,141.06,7.0891]
[1724250257136,20.0,141.12,141.07,7.0886]
[1724250257968,20.0,141.12,141.08,8.50516047]
[1724250258163,387.8,141.16,141.1,7.0871]
[1724250258667,387.8,141.16,141.11,7.0863]
[1724250258833,49.3133,141.18,141.11,7.0863]
[1724250259038,8.50220792,141.17,141.1,7.087]
[1724250259251,7.0841,141.16,141.09,24.8059]
[1724250259452,1.41860792,141.15,141.09,17.7184]
[1724250259649,42.23,141.14,141.09,17.7184]
[1724250260059,42.23,141.14,141.08,7.088]
[1724250260370,73.50430792,141.13,141.06,24.8114]
[1724250260553,1.41860792,141.12,141.06,24.8114]
[1724250260958,72.0857,141.13,141.07,7.0886]
[1724250261171,65.0,141.13,141.07,7.0886]
[1724250261359,65.0,141.13,141.06,17.7224]
[1724250261669,1.41860792,141.12,141.06,17.7224]
[1724250261870,1.41860792,141.12,141.06,24.8114]
[1724250262046,1.41860792,141.12,141.05,6.0253]
[1724250262248,65.0,141.13,141.07,7.0886]
[1724250262546,66.41860792,141.13,141.07,7.0886]
[1724250263140,21.41860792,141.13,141.07,7.0886]
[1724250263341,20.0,141.13,141.07,7.0886]
[1724250263566,20.0,141.13,141.08,1.4173457]
[1724250263765,20.0,141.15,141.09,7.0875]
[1724250264070,20.0,141.15,141.06,17.722]
[1724250264268,27.0846,141.15,141.08,7.0877]
[1724250264963,1.41860792,141.14,141.08,7.0877]
[1724250265154,45.0,141.14,141.08,7.0877]
[1724250265350,20.0,141.13,141.08,17.7193]
[1724250265555,20.0,141.15,141.08,17.7193]
[1724250265860,20.0,141.15,141.1,7.0871]
[1724250266050,27.0842,141.16,141.1,7.0871]
[1724250266250,20.0,141.16,141.1,7.0871]
[1724250266762,387.8,141.18,141.05,41.59849]
[1724250266959,7.082,141.21,141.14,7.0851]
[1724250267159,387.8,141.24,141.15,1.41665956]
[1724250267344,387.8,141.24,141.1,21.41643286]
[1724250267547,387.8,141.24,141.11,46.66741286]
[1724250267764,7.0811,141.22,141.16,17.7094]
[1724250268071,8.50070792,141.21,141.14,7.0851]
[1724250268364,1.41860792,141.2,141.14,7.0851]
[1724250268577,45.0,141.2,141.13,7.0856]
[1724250268769,387.8,141.24,141.14,19.1287753]
[1724250268942,42.23,141.22,141.17,7.0836]
[1724250269143,394.8802,141.24,141.18,8.4993639]
[1724250269144,42.23,141.24,141.18,8.4993639]
[1724250270041,23.9617,141.29,141.18,19.1233639]
[1724250270042,42.23,141.26,141.18,19.1233639]
[1724250270241,7.0781,141.28,141.19,1.41452028]
[1724250270661,254.0,141.3,141.19,1.41452028]
[1724250270662,261.0772,141.3,141.22,7.081]
[1724250271068,394.8767,141.31,141.23,8.49607313]
[1724250271373,1.41860792,141.3,141.24,7.0801]
[1724250272100,394.8767,141.31,141.24,7.0801]
[1724250272843,8.49570792,141.3,141.23,7.0806]
[1724250273156,1.41860792,141.29,141.23,7.0806]
[1724250273482,8.49640792,141.29,141.22,17.702]
[1724250273642,20.0,141.28,141.22,17.702]
[1724250273975,20.0,141.28,141.22,24.7831]
[1724250274284,21.41860792,141.28,141.22,24.7831]
[1724250275154,42.23,141.26,141.2,7.0817]
[1724250275370,21.41860792,141.25,141.19,24.7887]
[1724250275673,20.0,141.28,141.19,24.7887]
[1724250275920,45.0,141.27,141.2,8.49667193]
[1724250276186,20.0,141.26,141.22,7.0811]
[1724250276357,20.0,141.28,141.21,24.7847]
[1724250276358,27.0782,141.28,141.21,24.7847]
[1724250276901,27.0782,141.28,141.22,7.081]
[1724250276902,20.0,141.28,141.22,7.081]
[1724250277190,27.0777,141.29,141.22,7.081]
[1724250277361,387.8,141.33,141.23,19.11670896]
[1724250277558,42.23,141.32,141.26,7.0789]
[1724250277782,42.23,141.32,141.27,1.4155209]
[1724250277990,42.23,141.32,141.26,7.0789]
[1724250278197,1.41860792,141.31,141.25,24.778]
[1724250278495,49.3063,141.32,141.25,24.778]
[1724250278689,7.0763,141.32,141.25,24.778]
[1724250278884,20.0,141.31,141.25,24.778]
[1724250279075,20.0,141.31,141.26,1.4155513]
[1724250279385,7.4050531,141.34,141.27,8.49372185]
[1724250280266,7.4050531,141.34,141.27,7.0782]
[1724250280593,8.49420792,141.33,141.27,7.0782]
[1724250280794,20.0,141.32,141.27,7.0782]
[1724250280996,20.0,141.32,141.26,7.079]
[1724250281291,42.23,141.3,141.26,7.079]
[1724250281596,20.0,141.32,141.27,7.0786]
[1724250281891,62.23,141.33,141.27,7.0786]
[1724250282123,63.64860792,141.33,141.27,7.0786]
[1724250282402,62.23,141.33,141.28,1.41536334]
[1724250282571,62.23,141.33,141.27,7.0786]
[1724250284573,62.23,141.33,141.28,8.49346578]
[1724250284775,20.0,141.33,141.28,7.0781]
[1724250285184,20.0,141.33,141.25,17.82389]
[1724250285508,20.0,141.33,141.26,0.12549]
[1724250285705,1.41860792,141.32,141.25,17.6984]
[1724250286004,7.0767,141.31,141.24,28.6777]
[1724250286174,66.41860792,141.3,141.24,21.598]
[1724250286373,1.41860792,141.29,141.24,6.0632]
[1724250286671,20.0,141.31,141.25,1.41586057]
[1724250286873,20.0,141.31,141.24,23.7627]
[1724250287196,7.0778,141.29,141.24,6.0632]
[1724250287369,21.41860792,141.28,141.24,6.0632]
[1724250287807,0.3299531,141.34,141.24,23.7631]
[1724250287980,1.74856102,141.34,141.24,23.7631]
[1724250288470,0.3299531,141.34,141.26,17.697]
[1724250288674,0.3299531,141.34,141.27,1.41522025]
[1724250288892,0.3299531,141.34,141.26,17.697]
[1724250289071,1.41860792,141.33,141.26,17.697]
[1724250289283,1.41860792,141.33,141.27,7.0786]
[1724250289489,21.41860792,141.33,141.27,7.0786]
[1724250289694,20.0,141.33,141.27,7.0786]
[1724250289901,20.0,141.33,141.28,7.0781]
[1724250290201,0.3299531,141.34,141.28,7.0781]
[1724250290376,1.74856102,141.34,141.28,7.0781]
[1724250290578,0.3299531,141.34,141.28,7.0781]
[1724250291103,1.74856102,141.34,141.28,7.0781]
[1724250291406,0.3299531,141.34,141.28,7.0781]
[1724250291712,0.3299531,141.34,141.29,1.41514983]
[1724250292006,0.3299531,141.34,141.3,8.4916304]
[1724250292299,0.3299531,141.34,141.33,7.0756]
[1724250292505,0.3299531,141.34,141.33,8.61566122]
[1724250292996,387.8,141.45,141.36,7.0739]
[1724250292997,7.071,141.43,141.36,7.0739]
[1724250293206,7.071,141.43,141.35,17.6862]
[1724250293207,7.0711,141.42,141.37,1.41455353]
[1724250293874,20.0,141.41,141.36,1.41452143]
[1724250294269,20.0,141.43,141.35,17.6862]
[1724250294474,387.8,141.46,141.35,17.6862]
[1724250294475,42.23,141.4,141.35,17.6862]
[1724250294782,43.64860792,141.4,141.35,17.6862]
[1724250295287,42.23,141.4,141.35,17.6862]
[1724250295597,42.23,141.42,141.36,1.17911468]
[1724250295901,42.23,141.42,141.36,8.25311468]
[1724250296209,20.0,141.41,141.36,7.074]
[1724250297209,7.0701,141.44,141.37,30.85897124]
[1724250297379,254.0,141.47,141.38,7.073]
[1724250297380,7.0697,141.45,141.38,7.073]
[1724250297704,7.0692,141.46,141.39,8.48672872]
[1724250297874,7.0692,141.46,141.39,7.0726]
[1724250298080,7.071,141.43,141.37,40.0544]
[1724250298276,7.071,141.43,141.37,22.3712]
[1724250298277,1.41860792,141.42,141.37,22.3712]
[1724250298487,7.0707,141.43,141.37,22.3712]
[1724250298685,7.0705,141.44,141.37,29.4447]
[1724250298882,28.48930792,141.43,141.37,22.3712]
[1724250299526,7.072,141.41,141.34,24.7625]
[1724250299826,20.0,141.4,141.34,24.7625]
[1724250300117,27.0721,141.4,141.34,17.6875]
[1724250300321,1.41860792,141.39,141.33,6.4803]
[1724250300485,7.0732,141.38,141.33,6.4803]
[1724250300808,20.0,141.37,141.34,1.41483471]
[1724250301009,387.8,141.44,141.34,1.41483471]
[1724250301183,7.072,141.41,141.34,8.48983471]
[1724250301383,7.0727,141.39,141.33,13.5559]
[1724250301621,20.0,141.38,141.33,6.4803]
[1724250301986,27.0732,141.38,141.33,6.4803]
[1724250302394,7.0746,141.35,141.32,15.8937]
[1724250302591,7.0746,141.35,141.29,30.8303]
[1724250302813,21.41860792,141.34,141.29,6.0593]
[1724250303021,20.0,141.34,141.29,6.0593]
[1724250303297,387.8,141.39,141.29,6.0593]
[1724250303298,20.0,141.37,141.3,1.41514311]
[1724250303494,7.0741,141.36,141.29,6.0593]
[1724250303716,20.0,141.35,141.29,6.0593]
[1724250303891,69.3047,141.35,141.29,13.1368]
[1724250304090,69.3046,141.35,141.29,6.0593]
[1724250304486,8.49380792,141.34,141.29,6.0593]
[1724250304693,20.0,141.33,141.29,6.0593]
[1724250305111,8.49380792,141.34,141.29,6.0593]
[1724250305397,27.0757,141.33,141.29,6.0593]
[1724250305612,20.0,141.32,141.29,6.0593]
[1724250305791,20.0,141.33,141.3,1.41528884]
[1724250306193,20.0,141.34,141.31,7.0766]
[1724250306436,387.8,141.4,141.31,7.0766]
[1724250306437,42.23,141.39,141.31,19.10611449]
[1724250306724,7.0721,141.4,141.34,7.0747]
[1724250306897,7.0717,141.41,141.35,1.41464566]
[1724250307295,1.41860792,141.4,141.33,17.688]
[1724250307515,7.0738,141.37,141.3,17.6924]
[1724250307700,7.0732,141.38,141.31,7.0763]
[1724250307900,7.0732,141.38,141.32,8.49080876]
[1724250308199,7.0727,141.39,141.29,6.0593]
[1724250308404,7.0717,141.41,141.35,7.0745]
[1724250308630,17.6719,141.47,141.37,7.0735]
[1724250308924,7.0704,141.44,141.38,7.073]
[1724250309221,7.0704,141.44,141.36,16.06479]
[1724250309222,7.0706,141.43,141.36,15.9393]
[1724250309786,0.8299531,141.48,141.36,15.9393]
[1724250309787,49.3021,141.41,141.36,15.9393]
[1724250309991,42.23,141.37,141.31,16.6147]
[1724250310197,7.0746,141.35,141.31,16.6147]
[1724250310405,8.49320792,141.35,141.31,16.6147]
[1724250310616,20.0,141.4,141.29,23.7526]
[1724250310617,27.0752,141.34,141.29,6.0593]
[1724250310825,1.41860792,141.33,141.29,6.0593]
[1724250311133,1.41860792,141.33,141.27,7.0785]
[1724250311422,20.0,141.33,141.28,7.0777]
[1724250311596,1.41860792,141.34,141.26,33.6261]
[1724250312025,7.0757,141.33,141.26,40.705]
[1724250312196,21.41860792,141.32,141.26,40.705]
[1724250312398,21.41860792,141.32,141.25,6.1218]
[1724250312597,45.0,141.31,141.21,21.551]
[1724250312829,7.0791,141.26,141.21,21.551]
[1724250313128,45.0,141.31,141.16,21.551]
[1724250313129,21.41860792,141.25,141.16,21.551]
[1724250313340,7.0815,141.22,141.16,21.551]
[1724250313526,28.50030792,141.21,141.16,21.551]
[1724250313831,20.0,141.25,141.11,7.0864]
[1724250313832,7.0826,141.19,141.11,7.0864]
[1724250314004,49.3126,141.19,141.12,1.41655093]
[1724250314324,20.0,141.18,141.13,1.41678225]
[1724250314539,49.3116,141.22,141.14,8.50150173]
[1724250314718,20.0,141.21,141.14,8.50140173]
[1724250315116,17.6914,141.32,141.16,17.71]
[1724250315419,7.0792,141.26,141.18,7.0831]
[1724250315620,45.0,141.25,141.19,1.41629837]
[1724250315804,18.09079314,141.32,141.19,19.12239837]
[1724250316010,1.41860792,141.31,141.19,17.7061]
[1724250316214,17.6935,141.3,141.16,7.084]
[1724250316418,7.0801,141.24,141.16,7.084]
[1724250316622,1.41860792,141.23,141.16,7.084]
[1724250317020,7.0806,141.23,141.17,1.41644161]
[1724250317223,20.0,141.22,141.17,1.41644161]
[1724250317413,27.88878628,141.35,141.16,7.084]
[1724250317414,17.6887,141.34,141.18,1.41633059]
[1724250317612,17.6887,141.34,141.17,65.12549]
[1724250317613,7.0776,141.29,141.17,65.12549]
[1724250317817,42.23,141.28,141.18,0.12549]
[1724250318031,49.3081,141.28,141.21,24.7855]
[1724250318215,7.0787,141.27,141.21,17.704]
[1724250318739,20.0,141.26,141.21,19.12008953]
[1724250319034,20.0,141.27,141.21,17.704]
[1724250319217,20.0,141.27,141.22,8.49709048]
[1724250319418,21.41860792,141.27,141.22,7.0811]
[1724250319653,20.0,141.27,141.23,1.41547007]
[1724250319835,7.68012834,141.4,141.23,19.11597007]
[1724250319836,7.0761,141.32,141.23,19.11597007]
[1724250320640,387.8,141.36,141.27,7.0786]
[1724250320810,1.41860792,141.35,141.25,17.6979]
[1724250321010,7.0756,141.33,141.25,24.777]
[1724250321209,394.8741,141.36,141.28,7.0776]
[1724250321416,387.8,141.36,141.29,8.4918283]
[1724250321612,1.41860792,141.35,141.28,7.078]
[1724250321914,1.41860792,141.39,141.28,7.078]
[1724250322117,7.0747,141.35,141.29,0.65261253]
[1724250322343,1.41860792,141.34,141.27,17.6955]
[1724250322529,7.0766,141.31,141.24,24.7801]
[1724250322714,7.0761,141.32,141.25,8.49515972]
[1724250322911,7.0761,141.32,141.25,7.0795]
[1724250323443,8.49520792,141.31,141.24,24.78]
[1724250323644,7.0762,141.32,141.25,8.49519057]
[1724250323938,412.8058542,141.4,141.29,7.0776]
[1724250324149,405.481,141.4,141.3,1.41524568]
[1724250324311,42.23,141.35,141.3,1.41524568]
[1724250324710,7.0752,141.34,141.26,17.6967]
[1724250324943,7.0758,141.33,141.26,17.6967]
[1724250325252,7.0766,141.31,141.23,17.7012]
[1724250325411,21.41860792,141.3,141.24,7.0801]
[1724250325807,1.41860792,141.29,141.23,24.7818]
[1724250326112,27.0771,141.3,141.23,24.7818]
[1724250326442,20.0,141.3,141.25,7.0795]
[1724250326642,1.41860792,141.29,141.24,7.0801]
[1724250327155,1.41860792,141.29,141.23,24.7817]
[1724250327333,1.41860792,141.28,141.21,29.8349]
[1724250327512,7.0787,141.27,141.21,22.7534]
[1724250327836,20.0,141.26,141.21,22.7534]
[1724250328558,28.49730792,141.27,141.21,22.7534]
[1724250328714,21.41860792,141.27,141.21,6.4013]
[1724250329042,45.0,141.26,141.16,6.2277]
[1724250329245,7.0807,141.23,141.16,13.3118]
[1724250329441,20.0,141.22,141.16,13.3118]
[1724250329617,27.0812,141.22,141.16,6.2277]
[1724250329957,27.0812,141.22,141.16,7.64434645]
[1724250330330,20.0,141.22,141.17,1.41483978]
[1724250330521,387.8,141.27,141.19,7.0824]
[1724250330522,20.0,141.24,141.19,7.0824]
[1724250330725,394.8787,141.27,141.21,7.0816]
[1724250330726,387.8,141.27,141.21,7.0816]
[1724250330941,387.8,141.27,141.22,1.41604332]
[1724250331120,43.64860792,141.26,141.18,17.7075]
[1724250331327,1.41860792,141.26,141.16,13.3118]
[1724250331554,1.41860792,141.26,141.16,6.2277]
[1724250331555,7.0811,141.22,141.16,6.2277]
[1724250331722,42.23,141.21,141.17,7.0834]
[1724250331927,387.8,141.26,141.18,8.34161623]